Cogmind - Beta 11.1 @@@ ROGUE MODE // 2022.05.10 @ 17:53:52 Player: Haldron Result: Destroyed by G-47 Trooper with Particle Gun Performance ------------- Evolutions (2) 1000 Regions Visited (6) 1200 Robots Destroyed (106) 530 Value Destroyed (2935) 2935 Prototype IDs (3) 60 Alien Tech Used (0) 0 Bonus (1386) 1386 TOTAL SCORE: 7111 Bonus ------- High Alert Combat Kills 164 Follower Combat Kills 554 Entered Garrisons 200 Used RIF Installer 500 Friendly Fire -32 Cogmind --------- Core Integrity 0/550 Matter 288/300 Energy 100/100 System Corruption 0% Temperature Cool (9) Movement Core (850) Ox16 Location -8/Materials Parts ------- > --- POWER (1) -------- (None) > --- PROPULSION (2) --- (None) > --- UTILITY (6) ------ Improved Heat Sink High-capacity Storage Unit Light Armor Plating > --- WEAPON (2) ------- Great Maul Scythe > --- INVENTORY (20) --- Improved Heat Sink Structural Scanner Sensor Array System Shield Relay Coupler [Sentry] (19) Relay Coupler [Heavy] (12) Improved Medium Laser Heavy Laser Mini Grenade Launcher Missile Launcher Missile Launcher Peak State ------------ > --- POWER ------------ Improved Ion Engine > --- PROPULSION ------- Armored Treads Armored Treads > --- UTILITY ---------- Improved Heat Sink High-capacity Storage Unit Signal Interpreter Hardened Light Armor Plating Hacking Suite Relay Coupler [Grunt] > --- WEAPON ----------- Improved Medium Laser Heavy Assault Rifle > --- INVENTORY -------- Light Nuclear Core Advanced Treads Carbon-fiber Leg Improved Heat Sink Improved Heat Sink Structural Scanner Sensor Array Light Armor Plating System Shield Relay Coupler [Sentry] Relay Coupler [Heavy] Heavy Assault Rifle Mini Grenade Launcher Missile Launcher Missile Launcher Missile Launcher Great Maul Scythe [Rating: 31] Favorites ----------- Power Ion Engine Engine Ion Engine Power Core Light Nuclear Core Propulsion Armored Treads Treads Armored Treads Leg Carbon-fiber Leg Wheel Compact Wheel Flight Unit Improved Flight Unit Utility Large Storage Unit Device Improved Heat Sink Storage Large Storage Unit Processor Signal Interpreter Hackware Relay Coupler [Grunt] Protection Hardened Light Armor Plating Weapon Heavy Assault Rifle Energy Gun Improved Medium Laser Ballistic Gun Heavy Assault Rifle Launcher Missile Launcher Special Weapon Plasma Cutter Impact Weapon Great Maul Slashing Weapon Mining Claw Special Melee Weapon Datajack Build | -11 -10 -10 -9 -9 -9 -8 ------- Run | Scr Mat Min Mat Sto Gar Mat Slots Evolved 4 | . . . 2 . . 2 Power . | . . . . . . . Propulsion . | . . . . . . . Utility 4 | . . . 2 . . 2 Weapon . | . . . . . . . Parts Attached 114 | 7 10 5 33 20 21 18 Power 8 | 1 2 . 1 1 1 2 Engine 6 | 1 1 . 1 1 1 1 Core 2 | . 1 . . . . 1 Reactor . | . . . . . . . Propulsion 20 | 2 2 1 9 . 4 2 Treads 15 | 1 1 1 8 . 3 1 Leg 2 | . . . . . 1 1 Wheel 2 | 1 1 . . . . . Hover . | . . . . . . . Flight 1 | . . . 1 . . . Utility 28 | 2 2 3 9 5 2 5 Device 11 | 1 . 1 4 3 1 1 Storage 5 | 1 2 . 1 . 1 . Processor 1 | . . . 1 . . . Hackware 2 | . . . . . . 2 Protection 9 | . . 2 3 2 . 2 Artifact . | . . . . . . . Weapon 58 | 2 4 1 14 14 14 9 Energy Gun 5 | . . . 2 . 2 1 Energy Cannon . | . . . . . . . Ballistic Gun 30 | 2 3 1 6 8 6 4 Ballistic Cannon . | . . . . . . . Launcher 6 | . . . . 2 3 1 Special Weapon 2 | . . . . 2 . . Impact Weapon 11 | . . . 6 2 2 1 Slashing Weapon 2 | . 1 . . . . 1 Piercing Weapon . | . . . . . . . Special Melee Weapon 2 | . . . . . 1 1 Unidentified Prototypes 1 | . . . 1 . . . Parts Lost 26 | . 2 1 4 1 2 16 Power 4 | . 1 . . . . 3 Propulsion 7 | . 1 . . . 2 4 Utility 9 | . . . 3 1 . 5 Weapon 6 | . . 1 1 . . 4 Highest Loss Streak 11 | . 1 1 2 1 2 11 To Critical Strikes 1 | . . . . . 1 . Average Slot Usage (%) 98 | . 99 99 98 98 99 93 Engine 10 | . 5 14 11 11 11 8 Treads 21 | . 14 25 21 22 21 17 Wheel 1 | . 13 2 . . . . Device 12 | . 14 1 18 15 11 8 Storage 11 | . 14 14 11 11 11 9 Processor 6 | . . . 3 11 11 8 Hackware 1 | . . . . . . 14 Protection 9 | . . 12 10 6 11 8 Energy Gun 3 | . . . 4 . 5 7 Ballistic Gun 16 | . 26 27 14 16 9 8 Impact Weapon 1 | . . . 1 2 2 1 Naked Turns . | . . . . . . . Heaviest Build 59 | 12 32 38 40 43 57 59 Greatest Support 42 | 20 16 40 40 40 40 42 Greatest Overweight (x) 16 | . 1 2 . 1 1 16 Average Overweight (x) . | . . . . . . 1 Largest Inventory Capacity 20 | 8 15 15 15 15 20 20 Average Capacity 15 | 7 10 15 15 15 16 20 Most Carried 20 | 4 13 15 15 15 19 20 Average Carried 14 | 3 8 14 14 14 15 18 Final Capacity 20 | 8 15 15 15 15 20 20 Final Carried 19 | 4 11 15 15 15 19 11 Class Distribution -------------------- 56% | Scavenger-Mutant 37% | Mutant 6% | Commander-Mutant Dominant Class ---------------- Mutant | -10/Materials Mutant | -10/Mines Scavenger-Mutant | -9/Materials Scavenger-Mutant | -9/Storage Scavenger-Mutant | -9/Garrison Scavenger-Mutant | -8/Materials Resources | -11 -10 -10 -9 -9 -9 -8 ----------- Run | Scr Mat Min Mat Sto Gar Mat Matter Collected 2980 | 306 290 304 697 532 320 531 Remotely . | . . . . . . . Salvage Created 4330 | 94 432 495 1031 984 298 996 Parts 250 | 5 26 14 61 71 20 53 Haulers Intercepted 3 | . . . 2 1 . . Recyclers Shooed 3 | . 1 . . 1 . 1 Parts Field Recycled . | . . . . . . . Retrieved Matter . | . . . . . . . Parts Self-Destructed . | . . . . . . . Prevented . | . . . . . . . Kills | -11 -10 -10 -9 -9 -9 -8 ------- Run | Scr Mat Min Mat Sto Gar Mat Combat Hostiles Destroyed 72 | . 6 10 13 15 10 18 Melee 5 | . . . . . . 5 Guns 62 | . 6 10 13 15 9 9 AOE 4 | . . . . . 1 3 Classes Destroyed 13 | 2 2 3 4 1 1 . Worker 7 | . . 1 4 . . 2 Builder 4 | . . . 3 . . 1 Tunneler 3 | 1 . 1 1 . . . Hauler 3 | . . . 2 1 . . Recycler 13 | 1 2 4 2 2 . 2 Operator 1 | . . . . 1 . . Watcher 9 | . 2 . 4 1 1 1 Swarmer 13 | . . 4 4 1 4 . Grunt 33 | . 6 . 4 6 4 13 Brawler 2 | . . . 1 . . 1 Duelist 2 | . . . . . 2 . Sentry 16 | . . . 4 8 . 4 Assembled 6 | . . 6 . . . . Best Kill Streak 9 | 2 4 4 9 2 5 8 Combat Bots Only 5 | . 2 3 3 2 5 4 Max Kills in Single Turn 4 | 1 1 1 2 2 1 4 Gunslinging 1 | . . . . 1 . . Exploded 2 | . . . . . 1 2 Melee 1 | . . . . . . 1 Uniques/NPCs Destroyed . | . . . . . . . Combat | -11 -10 -10 -9 -9 -9 -8 -------- Run | Scr Mat Min Mat Sto Gar Mat Damage Taken 5563 | . 599 254 659 614 841 2596 Core 953 | . 117 32 77 101 71 555 Absorbed by Shields . | . . . . . . . Regen/Repaired (Parts) 278 | . . . . 18 . 260 Core Remaining (%) 59 | 100 . 40 . . 37 . Volleys Fired 287 | 9 40 38 60 50 34 56 Largest 2 | 2 2 2 2 2 2 2 Hottest 79 | 40 46 46 79 46 79 79 Shots Fired 545 | 18 80 71 122 94 59 101 Gun 527 | 18 80 71 122 87 52 97 Cannon . | . . . . . . . Launcher 11 | . . . . . 7 4 Special 7 | . . . . 7 . . Kinetic 438 | 18 80 71 79 87 51 52 Thermal 96 | . . . 43 7 1 45 Explosive 11 | . . . . . 7 4 Electromagnetic . | . . . . . . . Robot Hit Streak 17 | 9 10 7 11 17 11 13 Robot Miss Streak 7 | 1 4 7 7 2 2 6 Penetration Max . | . . . . . . . Secondary Targets 10 | . 1 1 1 4 2 1 Max Gunslinging Chain 1 | . 1 1 1 1 1 1 Shots Hit Robots 347 | 12 44 36 71 60 38 86 Core Hits 170 | 5 21 23 35 32 17 37 Critical Kills 2 | . . . 1 . . 1 Critical Parts Destroyed 3 | . . 1 1 . . 1 Critical Strikes 12 | . . 1 4 . . 7 Burn 6 | . . . 2 . . 4 Destroy 3 | . . 1 1 . . 1 Smash 2 | . . . 1 . . 1 Sever 1 | . . . . . . 1 Melee Attacks 44 | . 1 . 10 5 11 17 Impact 34 | . . . 10 5 11 8 Slashing 8 | . 1 . . . . 7 Piercing . | . . . . . . . Sneak Attacks 3 | . . . 2 . . 1 Combat Hostiles 1 | . . . . . . 1 Follow-up Attacks 1 | . . . . . . 1 Damage Inflicted 6628 | 154 605 620 1328 954 869 2098 Guns 5115 | 154 605 620 1122 926 523 1165 Cannons . | . . . . . . . Explosions 873 | . . . 16 . 346 511 Melee 601 | . . . 190 . . 411 Ramming 16 | . . . . 5 . 11 Kinetic 4070 | 154 605 620 678 926 523 564 Thermal 1068 | . . . 444 23 . 601 Explosive 857 | . . . . . 346 511 Electromagnetic 16 | . . . 16 . . . Impact 415 | . . . 190 . . 225 Slashing 186 | . . . . . . 186 Piercing . | . . . . . . . Highest Corruption 5 | . . . 5 5 5 . Average Corruption 5 | . . . 5 5 5 . Corruption Purged . | . . . . . . . Corruption Blocked . | . . . . . . . Effects 153 | . . . 51 53 49 . Message Errors 30 | . . . 11 8 11 . Matter Fused 45 | . . . 19 13 13 . Heat Flow Errors 21 | . . . 3 12 6 . Energy Discharges 21 | . . . 6 6 9 . Parts Rejected 1 | . . . . . 1 . Data Loss (minor) 18 | . . . 5 6 7 . Data Loss (major) 7 | . . . 2 4 1 . Misfires 4 | . . . 2 2 . . Alerts 4 | . . . 3 1 . . Weapon Failures 2 | . . . . 1 1 . Overload Shots . | . . . . . . . Overflow Damage 250 | . . . 170 . 10 70 Projectiles . | . . . . . . . Explosions 39 | . . . . . 10 29 Melee 211 | . . . 170 . . 41 Knockbacks 1 | . . . . . . 1 Impact 1 | . . . . . . 1 Kinetic . | . . . . . . . Secondary . | . . . . . . . Self-Inflicted Damage 35 | . . . . . . 35 Shots 1 | . . . . . . 1 Rammed 5 | . . . . 2 . 3 Targets Rammed 5 | . . . . 2 . 3 Kicked . | . . . . . . . Crushed . | . . . . . . . Highest Temperature 252 | . 32 60 252 248 198 57 Average Temperature 50 | . 13 26 67 92 54 10 Received Heat Transfer 2576 | . 339 86 210 207 321 1413 Siege Activations . | . . . . . . . Robots Corrupted . | . . . . . . . Combat Hostiles . | . . . . . . . Parts Fried 6 | . . . 4 . . 2 Impact Corruptions 5 | . . . 4 . . 1 Robots Melted 1 | . . . . . . 1 Combat Hostiles 1 | . . . . . . 1 Parts Melted 5 | . . . 4 . . 1 Heat Transferred 2849 | . . . 1184 74 . 1591 Parts Sabotaged . | . . . . . . . Parts Stolen . | . . . . . . . Parts Stripped . | . . . . . . . Power Chain Reactions . | . . . . . . . Missiles Intercepted . | . . . . . . . Alert | -11 -10 -10 -9 -9 -9 -8 ------- Run | Scr Mat Min Mat Sto Gar Mat Peak Influence 917 | 10 127 129 315 444 917 490 Initial 446 | . 6 49 1 11 248 446 Average 276 | 4 33 55 142 330 730 255 Maximum Alert Level 3 | . . . 1 2 3 2 Low Security (%) 50 | 100 100 100 70 15 . 41 Level 1 24 | . . . 29 54 16 31 Level 2 11 | . . . . 30 15 27 Level 3 12 | . . . . . 68 . Level 4 . | . . . . . . . Level 5 . | . . . . . . . High Security . | . . . . . . . Max Security . | . . . . . . . Squads Dispatched 4 | . . . . 3 . 1 Investigation 1 | . . . . . . 1 Extermination . | . . . . . . . Reinforcement 3 | . . . . 3 . . Assault . | . . . . . . . Garrison . | . . . . . . . Intercept . | . . . . . . . Searches Triggered . | . . . . . . . Construction Impeded . | . . . . . . . Haulers Reinforced . | . . . . . . . Active Scanning Responses . | . . . . . . . Cargo Convoy Interrupts . | . . . . . . . Stealth | -11 -10 -10 -9 -9 -9 -8 --------- Run | Scr Mat Min Mat Sto Gar Mat Distress Signals 11 | . 2 . 3 3 . 3 Communications Jammed . | . . . . . . . Distress Signals . | . . . . . . . Times Spotted 141 | . 17 16 34 34 13 27 Peak Tracking Total 12 | . 4 3 5 4 9 12 Tactical Retreats 6 | . . . 2 1 2 1 Traps | -11 -10 -10 -9 -9 -9 -8 ------- Run | Scr Mat Min Mat Sto Gar Mat Traps Triggered 1 | . . . 1 . . . Indirectly . | . . . . . . . Trap Hack Attempts . | . . . . . . . Triggered . | . . . . . . . Disarmed . | . . . . . . . Reprogrammed . | . . . . . . . Reused . | . . . . . . . Traps Extracted . | . . . . . . . Installed . | . . . . . . . Triggered . | . . . . . . . Machines | -11 -10 -10 -9 -9 -9 -8 ---------- Run | Scr Mat Min Mat Sto Gar Mat Machines Disabled 5 | . . . 1 2 2 . Max in Single Turn 1 | . . . 1 1 1 . Garrison Relay 1 | . . . . . 1 . Machines Sabotaged . | . . . . . . . Garrisons Compromised . | . . . . . . . Overloaded Fab Kills . | . . . . . . . Hacking | -11 -10 -10 -9 -9 -9 -8 --------- Run | Scr Mat Min Mat Sto Gar Mat Machines Accessed 31 | . 8 . 10 9 . 4 Terminals 26 | . 8 . 8 7 . 3 Fabricators . | . . . . . . . Repair Stations 2 | . . . . 1 . 1 Recycling Units . | . . . . . . . Scanalyzers 2 | . . . 2 . . . Garrison Access 1 | . . . . 1 . . Total Hacks 76 | . 23 . 27 12 . 14 Successful 50 | . 17 . 16 9 . 8 Failed 26 | . 6 . 11 3 . 6 Catastrophic 1 | . . . . 1 . . Database Lockouts . | . . . . . . . Manual 34 | . 15 . 9 2 . 8 Terminals 65 | . 23 . 23 9 . 10 Fabricators . | . . . . . . . Repair Stations 6 | . . . . 2 . 4 Recycling Units . | . . . . . . . Scanalyzers 4 | . . . 4 . . . Garrison Access 1 | . . . . 1 . . Terminal Hacks 26 | . 10 . 7 6 . 3 Record 4 | . 3 . . 1 . . Robot Schematic 1 | . . . . 1 . . Prototype ID Bank 1 | . 1 . . . . . Open Door 3 | . . . . 3 . . Terminal Index 3 | . 1 . 1 . . 1 Unreport Threat 2 | . . . 1 . . 1 Dispatch Records 1 | . 1 . . . . . Hauler Manifests 4 | . 1 . 2 . . 1 Registered Components 1 | . 1 . . . . . Registered Prototypes 1 | . . . . 1 . . Zone Layout 5 | . 2 . 3 . . . Fabricator Hacks . | . . . . . . . Repair Station Hacks 6 | . . . . 2 . 4 Scan Component 3 | . . . . 1 . 2 Repair 3 | . . . . 1 . 2 Recycling Unit Hacks . | . . . . . . . Scanalyzer 4 | . . . 4 . . . Insert Component 2 | . . . 2 . . . Analyze 2 | . . . 2 . . . Garrison Access Hacks 1 | . . . . 1 . . Unlock Access 1 | . . . . 1 . . Unauthorized Hacks 13 | . 7 . 5 . . 1 Terminals 13 | . 7 . 5 . . 1 Track 1 | . 1 . . . . . Assimilate 4 | . 2 . 2 . . . Botnet 5 | . 3 . 2 . . . Operators 3 | . 1 . 1 . . 1 Fabricators . | . . . . . . . Repair Stations . | . . . . . . . Recycling Units . | . . . . . . . Scanalyzers . | . . . . . . . Garrison Access . | . . . . . . . Data Cores Recovered . | . . . . . . . Used . | . . . . . . . Hacking Detections 20 | . 6 . 7 3 . 4 Full Trace Events 2 | . 1 . . . . 1 Feedback Events . | . . . . . . . Feedback Blocked . | . . . . . . . Robot Schematics Acquired 1 | . . . . 1 . . Robots Built . | . . . . . . . Authchips . | . . . . . . . Time . | . . . . . . . Total Robot Build Rating . | . . . . . . . Part Schematics Acquired 2 | . . . 2 . . . Parts Built . | . . . . . . . Authchips . | . . . . . . . Time . | . . . . . . . Total Part Build Rating . | . . . . . . . Parts Repaired 3 | . . . . 1 . 2 Time 90 | . . . . 26 . 64 Parts Recycled . | . . . . . . . Recycled Matter . | . . . . . . . Retrieved Matter . | . . . . . . . Retrieved Components . | . . . . . . . Parts Scanalyzed 2 | . . . 2 . . . Part Schematics Acquired 2 | . . . 2 . . . Parts Damaged . | . . . . . . . Bothacking | -11 -10 -10 -9 -9 -9 -8 ------------ Run | Scr Mat Min Mat Sto Gar Mat Used RIF Installer 1 | . . . . . 1 . Robots Hacked 1 | . . . . . . 1 Non-combat . | . . . . . . . Combat 1 | . . . . . . 1 Robot Hacks Applied 1 | . . . . . . 1 overwrite_iff 1 | . . . . . . 1 Relay Couplers Released 3 | . . . . . 3 . Machine Destruction 3 | . . . . . 3 . Attached 1 | . . . . . . 1 Fabnet Peak Effective % . | . . . . . . . Robots Rewired . | . . . . . . . Allies Hacked . | . . . . . . . Hacks Repelled . | . . . . . . . Allies | -11 -10 -10 -9 -9 -9 -8 -------- Run | Scr Mat Min Mat Sto Gar Mat Total Allies 16 | . 1 2 2 10 . 1 Largest Group 13 | . 1 3 3 13 3 3 Highest-Rated Group 118 | . 10 55 55 118 30 49 Highest-Rated Ally 31 | . 10 31 31 16 10 29 Total Orders 31 | . . 10 13 2 5 1 STAY 22 | . . 8 8 1 4 1 FOLLOW 9 | . . 2 5 1 1 . Ally Attacks 122 | . . 16 17 84 . 5 Total Damage 1380 | . . 264 277 741 . 98 Kills 29 | . . 6 7 15 . 1 Allies Corrupted . | . . . . . . . Allies Melted . | . . . . . . . Intel | -11 -10 -10 -9 -9 -9 -8 ------- Run | Scr Mat Min Mat Sto Gar Mat Robot Analysis Total . | . . . . . . . Derelict Logs Recovered 1 | . . 1 . . . . Drone Launches . | . . . . . . . Drone Recoveries . | . . . . . . . Exploration | -11 -10 -10 -9 -9 -9 -8 ------------- Run | Scr Mat Min Mat Sto Gar Mat Turns Passed 10794 | 82 917 1531 2902 1937 1984 1441 Spaces Moved 5269 | 40 651 842 1522 876 897 441 Core 2 | 1 . . . . . 1 Treads 4410 | 4 . 674 1522 876 897 437 Legs 3 | . . . . . . 3 Wheels 854 | 35 651 168 . . . . Hover . | . . . . . . . Flight . | . . . . . . . Fastest Speed 50 | 50 100 130 160 170 170 237 Average Speed 172 | 104 106 154 163 190 200 251 Slowest Speed 850 | 160 115 160 170 250 250 850 Overloaded Moves . | . . . . . . . Propulsion Burnouts . | . . . . . . . Robots Hopped 1 | . . . . 1 . . Cave-ins Triggered . | . . . . . . . Exploration Rate (%) 66 | 3 97 99 75 86 78 30 Regions Visited 6 Branch Regions 2 Pre-discovered Areas . | . . . . . . . Known Exits Taken 2 | . . . 1 1 . . Unknown Exits Taken 3 | 1 1 1 . . . . Scrap Searched 1 | . . 1 . . . . Spaces Dug 12 | . 1 . 8 3 . . Terrain Destroyed 56 | . 1 . 8 3 14 30 Melee 12 | . 1 . 8 3 . . Projectile . | . . . . . . . AOE 44 | . . . . . 14 30 Terrain Rammed . | . . . . . . . Walls Destroyed . | . . . . . . . Machines Disabled . | . . . . . . . Actions | -11 -10 -10 -9 -9 -9 -8 --------- Run | Scr Mat Min Mat Sto Gar Mat Total 6337 | 60 799 1006 1801 1033 995 643 Wait 499 | . 75 109 143 63 16 93 Move 5260 | 39 650 841 1521 873 895 441 Hop 1 | . . . . 1 . . Pick Up 67 | 5 13 9 14 7 11 8 Fast Attach 13 | 6 1 . 1 2 2 1 Attach 28 | 1 2 1 6 2 4 12 Detach 4 | . 1 . 1 1 1 . Swap 73 | . 7 4 26 16 15 5 Drop 52 | . 9 4 19 11 6 3 Fire 287 | 9 40 38 60 50 34 56 Melee 43 | . 1 . 10 5 11 16 Ram . | . . . . . . . Kick . | . . . . . . . Crush 5 | . . . . 2 . 3 Escape Stasis . | . . . . . . . Rewire 5 | . . . . . . 5 Trap . | . . . . . . . Miscellaneous . | . . . . . . . Route ------- -11/Scrapyard -10/Materials (discovered 5 exits: *Mat x3 / [*Min x2]) -10/Mines (discovered 2 exits: *Mat x2) -9/Materials (discovered 6 exits: *Mat x3 / *Min / *Sto x2) -9/Storage -9/Garrison (discovered 3 exits: *Mat x3) -8/Materials History --------- Turn | Location | Event 11 | -11/Scrapyard | Discovered new exit (range 16) 83 | -11/Scrapyard | Entered Materials 238 | -10/Materials | Discovered new exit (range 8) 312 | -10/Materials | Build established: Mutant 312 | -10/Materials | Discovered new exit (range 7) 320 | -10/Materials | Discovered new exit (range 16) 347 | -10/Materials | Discovered new exit (range 7) 697 | -10/Materials | Discovered new exit (range 8) 1000 | -10/Materials | Entered Mines 1000 | -10/Mines | Accompanied by 1 ally 1126 | -10/Mines | Assembled infested the area 1552 | -10/Mines | Core integrity fell below 50% 1594 | -10/Mines | Discovered new exit (range 16) 1653 | -10/Mines | Discovered new exit (range 9) 1750 | -10/Mines | Learned Materials emergency access door positions 2531 | -10/Mines | Entered Materials 2531 | -9/Materials | Accompanied by 3 allies 2531 | -9/Materials | Evolved 2 slots: Utility x2 2536 | -9/Materials | Led the pair of lost Derelicts to an unsafe place 2647 | -9/Materials | Discovered new exit (range 5) 3022 | -9/Materials | Discovered new exit (range 5) 3039 | -9/Materials | Discovered new exit (range 16) 3276 | -9/Materials | Build established: Scavenger-Mutant 3482 | -9/Materials | Discovered new exit (range 10) 4043 | -9/Materials | Discovered new exit (range 10) 4598 | -9/Materials | Identified exit to Materials 4622 | -9/Materials | Identified exit to Storage 4679 | -9/Materials | Identified exit to Mines 5104 | -9/Materials | Discovered exit to Materials (range 16) 5433 | -9/Materials | Entered Storage 5433 | -9/Storage | Accompanied by 3 allies 5547 | -9/Storage | Repaired Sensor Array 5622 | -9/Storage | Assisted by bots powering up and referring to "LRC-V3" 5926 | -9/Storage | Build established: Commander-Mutant 6591 | -9/Storage | Build established: Scavenger-Mutant 7229 | -9/Storage | Build established: Mutant 7368 | -9/Storage | Identified exit to Garrison 7370 | -9/Storage | Entered Garrison 7370 | -9/Garrison | Accompanied by 3 allies 7414 | -9/Garrison | Triggered checkpoint 7528 | -9/Garrison | Garrison Relay disabled 7708 | -9/Garrison | Core integrity fell below 50% 7840 | -9/Garrison | Triggered checkpoint 7876 | -9/Garrison | Discovered exit to Materials (range 10) 7979 | -9/Garrison | Build established: Scavenger-Mutant 8058 | -9/Garrison | Discovered exit to Materials (range 13) 8305 | -9/Garrison | Triggered checkpoint 8509 | -9/Garrison | Discovered exit to Materials (range 14) 8541 | -9/Garrison | Installed Relay Interface Framework 9354 | -9/Garrison | Entered Materials 9354 | -8/Materials | Accompanied by 3 allies 9354 | -8/Materials | Evolved 2 slots: Utility x2 9728 | -8/Materials | Repaired Hrd. Light Armor Plating 9761 | -8/Materials | Repaired Hvy. Assault Rifle 10734 | -8/Materials | Core integrity fell below 50% 10756 | -8/Materials | Core integrity fell below 20% 10781 | -8/Materials | Lost 11 parts (2p3n4u2w) 10795 | -8/Materials | Destroyed by G-47 Trooper with Particle Gun Last Messages --------------- 10760_ G-47 Trooper destroyed. 10761_ K-01 Serf collects debris. 10763_ Acquired 31 matter. 10769_ K-01 Serf collects debris. 10771_ Great Maul follow-up attack on G-47 Trooper. 10773_ K-01 Serf collects debris. 10774_ G-47 Trooper Aluminum Leg severed. 10779_ G-47 Trooper destroyed. 10780_ K-01 Serf collects debris. 10782_ Y-45 Defender destroyed. 10784_ Carbon-fiber Leg destroyed. 10785_ Hacking Suite destroyed. 10787_ Y-45 Defender destroyed. 10789_ Acquired 8 matter. 10789_ U-05 Engineer lays Concrete. 10790_ K-01 Serf collects debris. 10790_ U-05 Engineer lays Concrete. 10792_ The unstable cave ceiling collapses. 10792_ K-01 Serf collects debris. 10793_ U-05 Engineer lays Concrete. Map ----- +----------------------------------------------------+ | ?????????????????????????????????????????????????? | | ??????????????????? ?????????????????????????????? | | ??????????????????? ?????????????????????????????? | | ??????????????????? ?????????????????????????????? | | ??????????????????? ?????????????????????????????? | | ??????????????????? ?????????????????????????????? | | ??????????????????? ?????????????????????????????? | | ??????????????????? ?????????????????????????????? | | ??????????????????# #????????????????????????????? | | ??????????????????# #????????????????????????????? | | ??????????????????# #????????????????????????????? | | ?? ???????????????# #????????????????????????????? | | ?? ???????????????# #????????????????????????????? | | ?? ???????????????# #????????????????????????????? | | ?? ########???????# ######???????????????????????? | | ?# # ######### ## #???????????????????????? | | ?# + """ + #???????????????????????? | | ?# # """ ######+##+## #???????????????????????? | | ?# # """ #???# ## ##???????????????????????? | | ?# # #???#! [[ ## #????????????????????????? | | ?# # ] !#???# [[ ## #????????????????????????? | | ?# ########???# [[ ## #??????????###???????????? | | ?# #??????????#! ## #????#### ###?????????? | | ## #??????????#! = ##g##?? # #?????????? | | # #??????######+#####!!%###*## # #?????????? | | #^#??????# #% ta =%[@!*!k%= % #?????????? | | + #??##### #%#####%!=###/%u%#= #?????????? | | ^# #? # =*# #???##[##?#%[=! ??????? | | # #?""" # =%+%#????# #??# %= ! ???????? | | # # """ !# =#%#????# #??## ! # !% #???? | | ## # """ # #=#????#+##### # / #???? | | ## + # # #????# + #? ????#???? | | # # ! # # #????# """### #?### ????????? | | !# ######## # #????# """#?# #????? ?????????? | | # #??????###### #????# """#? ????????????????? | | # #???????????# #????# """#?! ????????????????? | | + #????????####/###??# +? ???????????????? | | ## #????????# #??# """#? ???????????????? | | #????????# #??# """#? #??????????????? | | ## ########?#""" #??# """?? ##??????????????? | | ?# # !#?#""" #??# ""??? #???????????????? | | ?# # """ #?#""" #??# ???? ????????????????? | | ## # "R #?# #??#= ???? ????????????????? | | + """ ######+###??####???? ????????????????? | | ## # + #???????????? ????????????????? | | ?#^#! ###### #???????????????????????????????? | | ?#^########????# ####????????????????????????????? | | ?# #???????????# !!##???????????????????????????? | | ?# #???????????#! !#???????????????????????????? | | ?# #?########### !#???????????????????????????? | +----------------------------------------------------+ Best States ------------- Heat Dissipation 45 Energy Generation 14 Energy Capacity 265 Matter Stores 300 Matter Capacity 300 Sight Range 16 Robot Scan Range 14 Terrain Scan Density 10 Armor Coverage 225 Evasion (%) 40 Recoil Reduction 2 Offensive Hacking 10 Relay Coupler Types 1 Relay Coupler Value 24 Item Schematics ----------------- Structural Scanner | -9/Materials | Scanalyzed Cmb. Airjet | -9/Materials | Scanalyzed Robot Schematics ------------------ M-13 Machinist | -9/Storage | Hacked Fabricated ------------ Nothing Alien Tech Used ----------------- None Achievements -------------- None Challenges ------------ None Game ------ Seed MassSingularitySteel Manual? 0 Play Time 01:27:10 Cumulative 35.0 hours Start 2022.05.10 @ 06:58:19 End 2022.05.10 @ 17:53:52 Sessions 5 Manual Loads 0 Difficulty Rogue Special Mode None Game No. 12 Rogue 11 Adventurer 0 Explorer 1 Win Type - Total 0 Types 0/0/0/0/0/0/0/0/0 Lore% 16 Gallery% 28 Achievement% 32 Wizard Run 0 Options --------- ASCII 0 Keyboard 0 Movement Numpad Keybinds 0 Fullscreen 1 Font 18/SmallcapsGlow Map View 76x50 Tactical HUD 1 Map Filters NONE Filters NONE Steam 1 RUN: 0b2306d3-3cb2-4362-ac50-9c8ca6c3c6d1